fUST/lending_fUST_20240706
["ID","MTS","AMOUNT","RATE_DAILY","PERIOD"]
[331365097,1720278402712,200.88921051,0.00016255,2]
[331365098,1720278404839,374.90689592,0.00016255,2]
[331365099,1720278405208,292.99777244,0.00016255,2]
[331365100,1720278418629,383.34412798,0.00016255,2]
[331365102,1720278420924,283.26851156,0.00016255,2]
[331365103,1720278425814,154.74467129,0.00016255,2]
[331365105,1720278428760,491.05706512,0.00016255,2]
[331365106,1720278431062,64.88414492,0.00025,120]
[331365107,1720278433207,939.11585508,0.00025,120]
[331365108,1720278436171,-905.91147,0.00017255,2]
[331365109,1720278436193,-199.9578956,0.00017346,2]
[331365110,1720278436214,-3000.0,0.00017388,2]
[331365111,1720278436237,-166.666666,0.00017618,2]
[331365112,1720278436258,-166.666666,0.00018098,2]
[331365113,1720278436281,-300.0,0.00018162,2]
[331365114,1720278436304,-300.0,0.00018162,2]
[331365115,1720278436435,-1002.15495083,0.00018163,2]
[331365116,1720278437364,2007.48920412,0.00016255,2]
[331365117,1720278441062,532.07448423,0.00016255,2]
[331365118,1720278449720,732.85287319,0.00016255,2]
[331365119,1720278452634,318.617778,0.00016255,2]
[331365120,1720278457146,1082.09813828,0.00016255,2]
[331365121,1720278461712,566.66102029,0.00016255,2]
[331365122,1720278462429,208.04822449,0.00016255,2]
[331365126,1720278484374,749.06650109,0.00016255,2]
[331365127,1720278492183,566.66102029,0.00016255,2]
[331365128,1720278504063,992.23546251,0.00016255,2]
[331365129,1720278514682,154.74467129,0.00016255,2]
[331365130,1720278522118,154.74467129,0.00016255,2]
[331365131,1720278523185,1157.97666863,0.00016255,2]
[331365132,1720278542789,164.49158165,0.00016255,2]
[331365133,1720278547283,-164.4617852,0.00018064,2]
[331365134,1720278547329,-250.0,0.00018111,2]
[331365135,1720278547378,-300.0,0.00018162,2]
[331365136,1720278547428,-204.83294892,0.00018162,2]
[331365137,1720278547513,-95.16705108,0.00018162,2]
[331365138,1720278547700,-824.12768304,0.00018163,2]
[331365139,1720278547919,-335.04187746,0.00018163,2]
[331365140,1720278551412,1380.62710775,0.00016255,2]
[331365141,1720278555228,789.98480892,0.00016255,2]
[331365143,1720278566283,-16217.7345874,0.0001808,2]
[331365144,1720278566889,-22738.67548867,0.00018163,2]
[331365145,1720278567525,-350.1453113,0.00018251,2]
[331365146,1720278567554,-166.666666,0.00018578,2]
[331365147,1720278567577,-190.9326654,0.00018798,2]
[331365148,1720278567600,-159.98872952,0.00018899,2]
[331365149,1720278567623,-179.85455723,0.00018899,2]
[331365150,1720278567645,-403.37885226,0.00018899,2]
[331365151,1720278567936,-338.56880501,0.00018899,2]
[331365152,1720278567961,-283.26851156,0.00018899,2]
[331365153,1720278567983,-316.37993527,0.00019039,3]
[331365154,1720278568006,-264.87264127,0.00019039,2]
[331365155,1720278568030,-166.666666,0.00019059,2]
[331365156,1720278568053,-1107.40449304,0.00019164,2]
[331365157,1720278568075,-2132.69930736,0.00019164,2]
[331365158,1720278569031,-156.05292113,0.00019165,2]
[331365159,1720278569054,-268.41032935,0.00019165,7]
[331365160,1720278569075,-209.15804517,0.00019165,2]
[331365161,1720278569096,-331.96303452,0.00019165,2]
[331365162,1720278569118,-155.1210509,0.00019165,2]
[331365163,1720278569138,-350.46728037,0.00019165,2]
[331365164,1720278569162,-525.26351233,0.00019165,2]
[331365165,1720278569183,-166.666666,0.00019539,2]
[331365166,1720278569203,-491.67887075,0.00019703,2]
[331365167,1720278569222,-402.35776708,0.00019703,2]
[331365168,1720278569242,-208.04822449,0.00019703,2]
[331365169,1720278569263,-5590.40390266,0.00019703,2]
[331365170,1720278569283,-531.33500682,0.00019703,2]
[331365171,1720278569303,-878.09217026,0.00019703,2]
[331365172,1720278569323,-908.33583081,0.00019703,2]
[331365173,1720278569345,-992.23546251,0.00019703,2]
[331365174,1720278569365,-180.93316291,0.00019703,2]
[331365175,1720278569387,-7623.07678655,0.000198,2]
[331365176,1720278569412,-300.0,0.00019814,2]
[331365177,1720278569435,-420.0,0.00019979,2]
[331365178,1720278569459,-763.32326228,0.0002,2]
[331365179,1720278569480,-225.57506949,0.0002,2]
[331365180,1720278569501,-390.96651459,0.0002,2]
[331365181,1720278569521,-815.44732755,0.0002,2]
[331365182,1720278569541,-4173.5699611,0.0002,2]
[331365183,1720278569562,-155.11691821,0.0002,2]
[331365184,1720278569583,-256.55099989,0.0002,2]
[331365185,1720278569606,-166.666666,0.00020019,2]
[331365186,1720278569630,-361.195607,0.00021096,2]
[331365187,1720278569658,-587.0,0.00021977,2]
[331365188,1720278569680,-301.86029608,0.0002217,2]
[331365189,1720278569706,-3714.00215988,0.00022932,2]
[331365190,1720278569728,-777.46,0.00023012,3]
[331365191,1720278569749,-388.73,0.00023012,3]
[331365192,1720278569770,-194.37,0.00023012,3]
[331365193,1720278569790,-583.13,0.00023012,3]
[331365194,1720278569815,-17973.89644486,0.00023022,3]
[331365195,1720278570068,154.74467129,0.00016255,2]
[331365196,1720278570097,-934.12399024,0.00019164,2]
[331365197,1720278570124,-44931.34427954,0.00023022,3]
[331365198,1720278570159,-30000.0,0.00023032,2]
[331365199,1720278570186,-2075.48766724,0.0002311,2]
[331365200,1720278570212,-823.0,0.00024174,2]
[331365201,1720278570236,-1554.92,0.00024382,3]
[331365202,1720278570281,-777.46,0.00024382,3]
[331365203,1720278570314,-388.74,0.00024382,3]
[331365204,1720278570345,-189.07190326,0.00025,2]
[331365205,1720278570374,-905.91147,0.00025883,2]
[331365206,1720278570407,-166.0,0.00026592,2]
[331365207,1720278570439,-3714.00215988,0.00027172,2]
[331365208,1720278570471,-361.195607,0.00027195,2]
[331365209,1720278570509,-62905.2407244,0.00027387,3]
[331365210,1720278570541,-500.0,0.00027397,2]
[331365211,1720278570573,-500.0,0.00027397,2]
[331365212,1720278570607,-500.0,0.00027397,2]
[331365213,1720278571728,-500.0,0.00027397,2]
[331365214,1720278571762,-500.0,0.00027397,2]
[331365215,1720278571793,-500.0,0.00027397,2]
[331365216,1720278571821,-500.0,0.00027397,2]
[331365217,1720278571852,-500.0,0.00027397,2]
[331365218,1720278571887,-500.0,0.00027397,2]
[331365219,1720278571921,-500.0,0.00027397,2]
[331365220,1720278571954,-500.0,0.00027397,2]
[331365221,1720278572318,-500.0,0.00027397,2]
[331365222,1720278572352,-500.0,0.00027397,2]
[331365223,1720278572380,-609.48615184,0.00027397,2]
[331365224,1720278572409,-500.0,0.00027397,2]
[331365225,1720278572438,-500.0,0.00027397,2]
[331365226,1720278572469,-500.0,0.00027397,2]
[331365227,1720278572499,-500.0,0.00027397,2]
[331365228,1720278572527,-500.0,0.00027397,2]
[331365229,1720278572556,-500.0,0.00027397,2]
[331365230,1720278574547,-500.0,0.00027397,2]
[331365231,1720278574582,-500.0,0.00027397,2]
[331365233,1720278574612,-500.0,0.00027397,2]
[331365234,1720278574645,-500.0,0.00027397,2]
[331365235,1720278574687,-500.0,0.00027397,2]
[331365236,1720278574718,-500.0,0.00027397,2]
[331365237,1720278574752,-500.0,0.00027397,2]
[331365238,1720278574785,-500.0,0.00027397,2]
[331365239,1720278574815,-500.0,0.00027397,2]
[331365240,1720278574844,-500.0,0.00027397,2]
[331365241,1720278574878,-500.0,0.00027397,2]
[331365242,1720278574907,-500.0,0.00027397,2]
[331365243,1720278574936,-500.0,0.00027397,2]
[331365244,1720278574969,-500.0,0.00027397,2]
[331365245,1720278574999,-500.0,0.00027397,2]
[331365246,1720278575030,-500.0,0.00027397,2]
[331365247,1720278575060,-500.0,0.00027397,2]
[331365248,1720278575088,-500.0,0.00027397,2]
[331365249,1720278575117,-500.0,0.00027397,2]
[331365250,1720278575146,-500.0,0.00027397,2]
[331365251,1720278575175,-500.0,0.00027397,2]
[331365252,1720278575203,-500.0,0.00027397,2]
[331365253,1720278575232,-500.0,0.00027397,2]
[331365254,1720278575260,-500.0,0.00027397,2]
[331365255,1720278575288,-500.0,0.00027397,2]
[331365256,1720278575316,-500.0,0.00027397,2]
[331365257,1720278575343,-500.0,0.00027397,2]
[331365258,1720278575372,-500.0,0.00027397,2]
[331365259,1720278575400,-500.0,0.00027397,2]
[331365260,1720278575430,-500.0,0.00027397,2]
[331365261,1720278575459,-500.0,0.00027397,2]
[331365262,1720278575487,-500.0,0.00027397,2]
[331365263,1720278575519,-500.0,0.00027397,2]
[331365264,1720278575548,-500.0,0.00027397,2]
[331365265,1720278575577,-500.0,0.00027397,2]
[331365266,1720278575609,-500.0,0.00027397,2]
[331365267,1720278575640,-500.0,0.00027397,2]
[331365268,1720278575672,-500.0,0.00027397,2]
[331365269,1720278575701,-500.0,0.00027397,2]
[331365270,1720278575730,-610.94861518,0.00027397,2]
[331365271,1720278575756,-173.580737,0.00027397,120]
[331365272,1720278575782,-150.0,0.000274,2]
[331365273,1720278575811,-2075.48766724,0.00027741,2]
[331365274,1720278575836,-208.36309142,0.00027948,2]
[331365275,1720278575865,-230.84903409,0.00028,2]
[331365276,1720278575892,-4979.53464261,0.00028,30]
[331365277,1720278575959,412.59810264,0.00016255,2]
[331365278,1720278576027,154.79948781,0.00019165,2]
[331365279,1720278576450,155.17765019,0.00019703,2]
[331365280,1720278576570,789.98480892,0.00016255,2]
[331365281,1720278576943,403.37885226,0.00016255,2]
[331365284,1720278612290,525.26351233,0.00019703,2]
[331365285,1720278615157,879.44990711,0.0002217,2]
[331365286,1720278615303,412.59810264,0.00019703,2]
[331365287,1720278615441,271.41512628,0.00019703,2]
[331365288,1720278616994,283.26851156,0.00019703,2]
[331365289,1720278617588,992.23546251,0.00019703,2]
[331365290,1720278620653,155.41402552,0.00019703,2]
[331365291,1720278620693,13155.37314031,0.00019703,2]
[331365292,1720278621390,3769.30720532,0.00023032,2]
[331365293,1720278623396,304.88836108,0.00019703,2]
[331365294,1720278624354,165.08616365,0.00019703,2]
[331365295,1720278624822,155.05395959,0.00019703,2]
[331365296,1720278628420,403.37885226,0.00019703,2]
[331365297,1720278628459,4173.5699611,0.0002,2]
[331365298,1720278628509,493.55538733,0.00019703,2]
[331365299,1720278629007,209.08716675,0.00019703,2]
[331365300,1720278631920,264.87431736,0.00019703,2]
[331365301,1720278631966,4173.5699611,0.0002,2]
[331365302,1720278632052,189.07190326,0.00025,2]
[331365305,1720278633297,812.51622582,0.00019703,3]
[331365308,1720278636997,-321.20253342,0.00029775,2]
[331365311,1720278637046,-357.58446644,0.00029775,2]
[331365313,1720278637057,-2931.81367186,0.00029826,2]
[331365321,1720278638406,373.78265909,0.00019703,2]
[331365348,1720278642428,-21968.18632814,0.00029826,2]
[331365351,1720278642443,-155.1958273,0.0003,4]
[331365354,1720278642455,-642.9488218,0.0003,4]
[331365356,1720278642481,-301.21859197,0.0003,30]
[331365358,1720278642501,-200.38599888,0.0003,4]
[331365359,1720278642515,-284.30371793,0.0003,3]
[331365361,1720278642529,-232.29605021,0.0003,4]
[331365363,1720278642543,-155.23189542,0.0003,4]
[331365364,1720278642555,-3714.00215988,0.00031411,2]
[331365366,1720278642566,-314.0,0.000315,120]
[331365370,1720278642609,-1006.088465,0.000323,9]
[331365372,1720278642621,-500.0,0.00032489,2]
[331365374,1720278642635,-500.0,0.00032489,2]
[331365378,1720278642694,-500.0,0.00032489,2]
[331365380,1720278642704,-405.0,0.0003249,2]
[331365382,1720278642725,-62905.2407244,0.0003249,4]
[331365384,1720278642738,-34151.09384128,0.000325,60]
[331365385,1720278642753,-361.195607,0.00033295,2]
[331365387,1720278642784,-707.86491026,0.00034688,4]
[331365389,1720278642795,-962.96577273,0.00035,4]
[331365392,1720278642831,-2669.63790954,0.00035259,4]
[331365394,1720278642851,-2857.76420507,0.00035615,4]
[331365396,1720278642862,-3714.00215988,0.00035651,2]
[331365398,1720278642872,-531.56332391,0.00036,30]
[331365399,1720278642891,-155.11332947,0.00037,4]
[331365401,1720278642902,-974.151394,0.00038264,4]
[331365404,1720278642919,-155.24403697,0.000392,10]
[331365407,1720278642943,-889.41142146,0.00039393,4]
[331365410,1720278643008,-222.6673369,0.00039393,4]
[331365411,1720278643019,-361.195607,0.00039394,2]
[331365412,1720278643031,-3714.00215988,0.0003989,2]
[331365414,1720278643046,-62905.2407244,0.0003998,5]
[331365416,1720278643058,-3990.98413807,0.0003999,4]
[331365419,1720278643103,-889.41142146,0.00039993,4]
[331365421,1720278643118,-313.97910448,0.00039994,4]
[331365424,1720278643137,-385.38100052,0.00039999,4]
[331365426,1720278643153,-154.74467129,0.00039999,4]
[331365428,1720278643164,-154.74467129,0.00039999,4]
[331365429,1720278643174,-314.21232894,0.0004,120]
[331365431,1720278643185,-590.80081677,0.0004,4]
[331365432,1720278643196,-155.90098331,0.00040229,4]
[331365434,1720278643216,-154.74467129,0.00040229,4]
[331365437,1720278643250,-320.38442213,0.00040229,4]
[331365438,1720278643263,-196.28189861,0.00040229,4]
[331365440,1720278643311,-684.30220419,0.00040579,5]
[331365441,1720278643322,-6111.87264351,0.00040599,20]
[331365442,1720278643358,-154.74467129,0.00040999,4]
[331365443,1720278643377,-155.21972348,0.00040999,4]
[331365444,1720278643395,-173.041,0.00041275,2]
[331365445,1720278643406,-878.0,0.0004128,2]
[331365446,1720278643448,-2075.48766724,0.00041637,28]
[331365447,1720278643462,-1000.0,0.00042,42]
[331365448,1720278643483,-5021.73007971,0.00042,30]
[331365449,1720278643494,-2500.0,0.000425,120]
[331365450,1720278643505,-537.32517777,0.00042629,30]
[331365451,1720278643517,-683.0,0.00042714,30]
[331365452,1720278643528,-1157.54352202,0.00042824,2]
[331365453,1720278643541,-500.0,0.00042835,120]
[331365454,1720278643557,-500.0,0.00042835,120]
[331365455,1720278643567,-500.0,0.00042835,120]
[331365456,1720278643579,-500.0,0.00042835,120]
[331365457,1720278643597,-500.0,0.00042835,120]
[331365458,1720278643608,-500.0,0.00042835,120]
[331365459,1720278643635,-500.0,0.00042835,120]
[331365460,1720278643645,-500.0,0.00042835,120]
[331365461,1720278643690,-500.0,0.00042835,120]
[331365462,1720278643733,-423.85,0.00042835,120]
[331365463,1720278643744,-500.0,0.00042835,120]
[331365464,1720278643754,-1000.0,0.00043,43]
[331365465,1720278643765,-302157.17078073,0.00043,7]
[331365466,1720278643779,-11416.21766296,0.00043,7]
[331365467,1720278643792,-2399.638932,0.00043,7]
[331365470,1720278644112,-2973.82340508,0.00043,7]
[331365471,1720278644125,-2049.94146236,0.00043,7]
[331365472,1720278644423,-102056.85371146,0.00043,7]
[331365487,1720278648795,197.16559461,0.00019703,2]
[331365497,1720278651297,412.59810264,0.00019703,2]
[331365498,1720278651854,239.99334204,0.00019703,2]
[331365499,1720278653710,301.86029608,0.0002217,2]
[331365527,1720278661367,948.9256647,0.00019703,2]
[331365528,1720278661435,293.21931504,0.0002,2]
[331365529,1720278662283,292.54703426,0.00019703,2]
[331365530,1720278671225,422.59655085,0.00019703,2]
[331365531,1720278671278,763.32326228,0.0002,2]
[331365532,1720278672919,268.36537859,0.00028,2]
[331365533,1720278673073,1117.11621423,0.0002,2]
[331365534,1720278673323,992.23546251,0.00019703,2]
[331365535,1720278673711,225.57506949,0.0002,2]
[331365536,1720278676730,165.08616365,0.00019703,2]
[331365537,1720278680584,478.95551741,0.00028,30]
[331365538,1720278680862,241.53891779,0.00019703,2]
[331365539,1720278681289,541.18592537,0.00019703,2]
[331365540,1720278681551,725.04696611,0.00019703,2]
[331365541,1720278685977,184.20852579,0.00019703,2]
[331365542,1720278689588,154.74467129,0.00019703,2]
[331365543,1720278689632,2126.99307263,0.00019703,2]
[331365544,1720278689711,154.74467129,0.00019703,2]
[331365545,1720278689752,189.07190326,0.00025,2]
[331365546,1720278691840,154.74467129,0.00019703,2]
[331365547,1720278692800,1986.97335839,0.00019703,2]
[331365548,1720278692905,205.77041431,0.00019703,2]
[331365549,1720278693246,208.65035491,0.00019703,2]
[331365550,1720278694410,789.77698638,0.00019703,2]
[331365551,1720278697913,269.98534809,0.00019703,2]
[331365552,1720278699874,239.99334204,0.00019703,2]
[331365553,1720278708592,670.68981153,0.0002,2]
[331365554,1720278712347,383.80768205,0.0002,2]
[331365555,1720278724265,412.59810264,0.00019703,2]
[331365556,1720278724357,496.40633075,0.00019703,2]
[331365557,1720278724408,992.23546251,0.00019703,2]
[331365558,1720278724798,362.3104196,0.0002,2]
[331365559,1720278726348,393.96069199,0.0002,2]
[331365560,1720278729512,1986.97335839,0.00019703,2]
[331365561,1720278732310,155.60002188,0.00019703,2]
[331365562,1720278733545,2126.99307263,0.00019703,2]
[331365566,1720278931967,154.72922386,0.00016255,2]
[331365572,1720279029172,1986.97335839,0.00016255,2]
[331365573,1720279036997,154.99573309,0.00016255,2]
[331365577,1720279112503,13578.69305099,0.00016255,2]
[331365580,1720279132273,1489.24109091,0.00016255,2]
[331365585,1720279196977,1986.97335839,0.00016255,2]
[331365586,1720279234464,2126.99307263,0.00016255,2]
[331365587,1720279238290,823.23037923,0.00016255,2]
[331365588,1720279244596,155.90098331,0.00016255,2]
[331365589,1720279268669,154.74467129,0.00016255,2]
[331365590,1720279275984,222.6673369,0.00016255,2]
[331365591,1720279280742,154.72922386,0.00016255,2]
[331365592,1720279298860,661.97621512,0.00016255,2]
[331365593,1720279299082,725.04696611,0.00016255,2]
[331365594,1720279312073,154.72922386,0.00016255,2]
[331365595,1720279326341,154.72922386,0.00016255,2]
[331365596,1720279331442,191.59893414,0.00016255,2]
[331365597,1720279338311,239.99334204,0.00016255,2]
[331365598,1720279343412,286.83357324,0.00016255,2]
[331365599,1720279354843,154.72922386,0.00016255,2]
[331365600,1720279357136,154.74467129,0.00016255,2]
[331365601,1720279369719,154.72922386,0.00016255,2]
[331365602,1720279384137,208.65035491,0.00016255,2]
[331365604,1720279400060,157.52474722,0.00016255,2]
[331365605,1720279402676,1986.97335839,0.00016255,2]
[331365606,1720279413994,155.60850019,0.00016255,2]
[331365608,1720279425574,164.47372965,0.00016255,2]
[331365609,1720279430471,2126.99307263,0.00016255,2]
[331365611,1720279457307,2126.99307263,0.00016255,2]
[331365614,1720279503762,196.28189861,0.00016255,2]
[331365615,1720279523015,249.10442789,0.00016255,2]
[331365617,1720279553010,661.97621512,0.00016255,2]
[331365618,1720279565825,154.76011872,0.00016255,2]
[331365619,1720279584500,1986.97335839,0.00016255,2]
[331365620,1720279610474,289.60506298,0.00016255,2]
[331365621,1720279620421,412.59810264,0.00016255,2]
[331365622,1720279622304,164.90905268,0.00016255,2]
[331365624,1720279637027,-499.9888163,0.0001817,2]
[331365625,1720279637067,-250.0,0.00018388,2]
[331365626,1720279637096,-155.16757676,0.00018798,2]
[331365627,1720279637129,-154.72922386,0.00018899,2]
[331365628,1720279637160,-300.0,0.0001899,2]
[331365629,1720279637381,-11942.43994447,0.00018991,2]
[331365631,1720279745909,384.02540198,0.00016255,2]
[331365632,1720279755245,1986.97335839,0.00016255,2]
[331365633,1720279765099,-3000.0,0.00017828,2]
[331365634,1720279765124,-642.40617,0.00018462,2]
[331365635,1720279765152,-300.0,0.00018585,2]
[331365636,1720279765178,-300.0,0.00018585,2]
[331365637,1720279765200,-22293.5399082,0.00018586,2]
[331365638,1720279765223,-3110.4482022,0.00018837,2]
[331365639,1720279765246,-2126.99307263,0.00018899,2]
[331365640,1720279765398,-12957.56005553,0.00018991,2]
[331365641,1720279765423,-250.0,0.00019041,2]
[331365642,1720279765446,-197.13244658,0.00019056,2]
[331365643,1720279765469,-333.36207532,0.00019065,2]
[331365644,1720279765492,-1392.46209166,0.00019164,2]
[331365645,1720279765516,-412.59810264,0.00019165,2]
[331365646,1720279765540,-454.87041268,0.00019165,2]
[331365647,1720279765564,-173.108916,0.00019178,2]
[331365648,1720279765590,-166.666666,0.00019701,2]
[331365649,1720279765614,-155.26748535,0.00019703,2]
[331365650,1720279765636,-322.44786838,0.00019703,2]
[331365651,1720279765659,-542.09030055,0.00019703,2]
[331365652,1720279765682,-205.3687641,0.00019703,2]
[331365653,1720279765706,-3078.51196359,0.00019703,2]
[331365654,1720279765730,-204.1601788,0.00019735,2]
[331365655,1720279765753,-704.37289901,0.0002,2]
[331365656,1720279765776,-1906.22108791,0.0002,2]
[331365657,1720279765799,-177.48497928,0.0002,2]
[331365658,1720279765824,-473.25363006,0.0002,2]
[331365659,1720279765853,-435.0,0.0002,2]
[331365660,1720279765878,-166.666666,0.00020238,2]
[331365661,1720279765903,-420.0,0.00020266,2]
[331365662,1720279765927,-166.666666,0.00020775,2]
[331365663,1720279765953,-365.122522,0.00021096,2]
[331365664,1720279765979,-166.666666,0.00021312,2]
[331365665,1720279766005,-166.666666,0.0002185,2]
[331365666,1720279766029,-180.0,0.00022099,2]
[331365667,1720279766055,-694.49722743,0.0002217,2]
[331365668,1720279766081,-166.666666,0.00022387,2]
[331365669,1720279766103,-190.9281156,0.00022808,2]
[331365670,1720279766128,-174.365209,0.00022908,2]
[331365671,1720279766150,-200.0,0.00023,2]
[331365672,1720279766172,-3134.26857858,0.00023019,2]
[331365693,1720279836411,-155.50517251,0.00022943,2]
[331365694,1720279836421,-154.77557542,0.00023019,2]
[331365695,1720279836446,-412.59810264,0.00023019,2]
[331365698,1720279836457,-542.88077558,0.00023019,2]
[331365699,1720279836698,-340.29809629,0.00023019,2]
[331365700,1720279836759,-200.99227756,0.00023019,2]
[331365701,1720279836786,-1005.85142707,0.00023019,2]
[331365750,1720279845995,-780.12965376,0.00023019,2]
[331365753,1720279846026,-2551.00080008,0.00023882,2]
[331365756,1720279846039,-763.32326228,0.00023882,2]
[331365758,1720279846062,-225.57506949,0.00023882,2]
[331365760,1720279846080,-2982.80962902,0.00024558,2]
[331365762,1720279846092,-200.0,0.00024658,15]
[331365764,1720279846119,-250.8050753,0.00025,2]
[331365765,1720279846132,-203.78415505,0.00025193,2]
[331365767,1720279846143,-6042.57235502,0.00025194,3]
[331365769,1720279846161,-15084.09923625,0.00025194,3]
[331365771,1720279846177,-114574.04955473,0.00025194,3]
[331365772,1720279846188,-30000.0,0.00025204,2]
[331365774,1720279846200,-52108.7037465,0.00025204,2]
[331365775,1720279846212,-365.122522,0.00027195,2]
[331365777,1720279846228,-500.0,0.00027397,2]
[331365778,1720279846239,-500.0,0.00027397,2]
[331365781,1720279846272,-500.0,0.00027397,2]
[331365782,1720279846283,-500.0,0.00027397,2]
[331365784,1720279846325,-500.0,0.00027397,2]
[331365785,1720279846355,-500.0,0.00027397,2]
[331365786,1720279846374,-500.0,0.00027397,2]
[331365787,1720279846391,-500.0,0.00027397,2]
[331365788,1720279846401,-500.0,0.00027397,2]
[331365789,1720279846439,-500.0,0.00027397,2]
[331365790,1720279846457,-500.0,0.00027397,2]
[331365791,1720279846492,-500.0,0.00027397,2]
[331365792,1720279846503,-500.0,0.00027397,2]
[331365793,1720279846549,-500.0,0.00027397,2]
[331365794,1720279846563,-500.0,0.00027397,2]
[331365795,1720279846575,-500.0,0.00027397,2]
[331365796,1720279846586,-500.0,0.00027397,2]
[331365797,1720279846631,-500.0,0.00027397,2]
[331365798,1720279846644,-500.0,0.00027397,2]
[331365799,1720279846669,-500.0,0.00027397,2]
[331365800,1720279846684,-500.0,0.00027397,2]
[331365801,1720279846695,-500.0,0.00027397,2]
[331365802,1720279846705,-500.0,0.00027397,2]
[331365803,1720279846715,-500.0,0.00027397,2]
[331365804,1720279846733,-500.0,0.00027397,2]
[331365805,1720279846743,-600.22434668,0.00027397,2]
[331365806,1720279846787,-500.0,0.00027397,2]
[331365807,1720279846797,-500.0,0.00027397,2]
[331365808,1720279846812,-500.0,0.00027397,2]
[331365809,1720279846826,-500.0,0.00027397,2]
[331365810,1720279846842,-500.0,0.00027397,2]
[331365811,1720279846854,-500.0,0.00027397,2]
[331365812,1720279846871,-450.0,0.00027397,2]
[331365813,1720279846886,-500.0,0.00027397,2]
[331365814,1720279846901,-500.0,0.00027397,2]
[331365815,1720279846912,-500.0,0.00027397,2]
[331365816,1720279846924,-500.0,0.00027397,2]
[331365817,1720279846946,-350.0,0.00027397,2]
[331365818,1720279846957,-500.0,0.00027397,2]
[331365819,1720279846995,-500.0,0.00027397,2]
[331365820,1720279847006,-500.0,0.00027397,2]
[331365821,1720279847025,-500.0,0.00027397,2]
[331365822,1720279847051,-650.0,0.00027397,2]
[331365823,1720279847088,-500.0,0.00027397,2]
[331365824,1720279847101,-173.5807378,0.00027397,120]
[331365825,1720279847129,-269.02930338,0.000274,2]
[331365826,1720279847148,-3737.44681431,0.00028,30]
[331365827,1720279847159,-412.07735676,0.00028,2]
[331365828,1720279847170,-504.72671183,0.00028,2]
[331365829,1720279847190,-2982.80962898,0.00029144,2]
[331365830,1720279847221,-580.11486391,0.00029675,2]
[331365831,1720279847236,-67850.360573,0.0002999,4]
[331365832,1720279847246,-707.86491026,0.0003,4]
[331365833,1720279847259,-284.30371793,0.0003,3]
[331365834,1720279847271,-642.9488218,0.0003,4]
[331365835,1720279847293,-401.62478929,0.0003,30]
[331365836,1720279847304,-157.27126622,0.0003,4]
[331365837,1720279847315,-155.23189542,0.0003,4]
[331365838,1720279847327,-232.29605021,0.0003,4]
[331365839,1720279847338,-200.38599888,0.0003,4]
[331365840,1720279847350,-405.0,0.0003,2]
[331365841,1720279847363,-623.08229135,0.00030023,2]
[331365842,1720279847376,-314.0,0.0003015,120]
[331365843,1720279847389,-586.87923764,0.00030183,2]
[331365844,1720279847400,-1006.088465,0.000323,9]
[331365845,1720279847432,-548.61282778,0.00032499,2]
[331365846,1720279847452,-350.41924565,0.00032499,2]
[331365847,1720279847480,-411.8655038,0.00032499,2]
[331365848,1720279847513,-500.0,0.00032499,2]
[331365849,1720279847523,-380.70389228,0.00032499,2]
[331365850,1720279847534,-500.0,0.00032499,2]
[331365851,1720279847545,-500.0,0.00032499,2]
[331365852,1720279847556,-276.02323409,0.00032499,2]
[331365853,1720279847566,-500.0,0.00032499,2]
[331365854,1720279847608,-500.0,0.00032499,2]
[331365855,1720279847668,-500.0,0.00032499,2]
[331365856,1720279847695,-500.0,0.00032499,2]